[Event "*** Titled Tuesday Blitz"]
[Site "Chess.com"]
[Date "2020.04.14"]
[Round "8"]
[White "ChessicallyInclined"]
[Black "Aryangholami"]
[Result "1-0"]
[WhiteElo "2602"]
[BlackElo "2716"]
[TimeControl "180+1"]
[EndTime "11:30:40 PDT"]
[Termination "ChessicallyInclined won by checkmate"]

1. d4 {[%clk 0:03:00.9]} 1... d5 {[%clk 0:02:58.8]} 2. c4 {[%clk 0:03:00.4]}
2... e6 {[%clk 0:02:59.7]} 3. Nc3 {[%clk 0:02:59.9]} 3... a6 {[%clk 0:02:59.2]}
4. cxd5 {[%clk 0:02:55.4]} 4... exd5 {[%clk 0:03:00.1]} 5. Qb3 {[%clk
0:02:55.3]} 5... c5 {[%clk 0:02:58.7]} 6. Nxd5 {[%clk 0:02:51.6]} 6... Nc6
{[%clk 0:02:36.2]} 7. Nf3 {[%clk 0:02:47.5]} 7... cxd4 {[%clk 0:02:27.2]} 8. e4
{[%clk 0:02:46.6]} 8... Bd6 {[%clk 0:02:15.4]} 9. Bd3 {[%clk 0:02:33.3]} 9...
Nge7 {[%clk 0:02:11.6]} 10. O-O {[%clk 0:02:20.4]} 10... O-O {[%clk 0:02:10.4]}
11. Bg5 {[%clk 0:02:19]} 11... h6 {[%clk 0:02:08]} 12. Bh4 {[%clk 0:02:13.7]}
12... Rb8 {[%clk 0:01:27.4]} 13. e5 {[%clk 0:01:48.8]} 13... Bc5 {[%clk
0:01:24.5]} 14. Nf4 {[%clk 0:01:23.3]} 14... Qc7 {[%clk 0:01:05.6]} 15. Bxe7
{[%clk 0:01:11]} 15... Nxe7 {[%clk 0:00:57.7]} 16. Rac1 {[%clk 0:01:08.3]} 16...
b6 {[%clk 0:00:55.2]} 17. Qc2 {[%clk 0:01:01.5]} 17... a5 {[%clk 0:00:54.1]} 18.
Be4 {[%clk 0:00:51.7]} 18... Ba6 {[%clk 0:00:45.5]} 19. Rfd1 {[%clk 0:00:51.5]}
19... Rfd8 {[%clk 0:00:36.3]} 20. Bd3 {[%clk 0:00:46.9]} 20... Bb7 {[%clk
0:00:34.8]} 21. Be4 {[%clk 0:00:45.5]} 21... Nc6 {[%clk 0:00:34.4]} 22. Nd3
{[%clk 0:00:41.1]} 22... Nb4 {[%clk 0:00:29.5]} 23. Nxb4 {[%clk 0:00:39.4]}
23... axb4 {[%clk 0:00:30.1]} 24. Bxb7 {[%clk 0:00:39]} 24... Qxb7 {[%clk
0:00:31]} 25. b3 {[%clk 0:00:25.4]} 25... Ra8 {[%clk 0:00:31]} 26. Qe2 {[%clk
0:00:21.3]} 26... Qd5 {[%clk 0:00:29.7]} 27. Rd3 {[%clk 0:00:21.5]} 27... Ra3
{[%clk 0:00:27.1]} 28. Rcd1 {[%clk 0:00:21.5]} 28... Rda8 {[%clk 0:00:26.9]} 29.
R1d2 {[%clk 0:00:18.7]} 29... Re8 {[%clk 0:00:21.7]} 30. h3 {[%clk 0:00:18.1]}
30... Ra7 {[%clk 0:00:18.7]} 31. Nxd4 {[%clk 0:00:15.3]} 31... Rxe5 {[%clk
0:00:16.3]} 32. Qg4 {[%clk 0:00:15.5]} 32... Re1+ {[%clk 0:00:15.2]} 33. Kh2
{[%clk 0:00:15.8]} 33... Qe5+ {[%clk 0:00:14.6]} 34. f4 {[%clk 0:00:15.1]} 34...
Qf6 {[%clk 0:00:12.1]} 35. Nf3 {[%clk 0:00:13.5]} 35... Re8 {[%clk 0:00:10.5]}
36. Rd7 {[%clk 0:00:12]} 36... Rxd7 {[%clk 0:00:10.4]} 37. Qxd7 {[%clk
0:00:12.5]} 37... Qxf4+ {[%clk 0:00:10.1]} 38. Kh1 {[%clk 0:00:11.8]} 38... Qe3
{[%clk 0:00:09.6]} 39. Rd3 {[%clk 0:00:08]} 39... Qc1+ {[%clk 0:00:07.6]} 40.
Kh2 {[%clk 0:00:08.4]} 40... Qf4+ {[%clk 0:00:06.8]} 41. Kh1 {[%clk 0:00:08.5]}
41... Re2 {[%clk 0:00:07.1]} 42. Rd2 {[%clk 0:00:05.5]} 42... Rxd2 {[%clk
0:00:04.9]} 43. Nxd2 {[%clk 0:00:05.9]} 43... Qe3 {[%clk 0:00:03.4]} 44. Qc8+
{[%clk 0:00:03.6]} 44... Kh7 {[%clk 0:00:03]} 45. Qf5+ {[%clk 0:00:03.6]} 45...
Kg8 {[%clk 0:00:03.4]} 46. Qc8+ {[%clk 0:00:04.1]} 46... Bf8 {[%clk 0:00:03.5]}
47. Nf3 {[%clk 0:00:04.8]} 47... g6 {[%clk 0:00:03.9]} 48. Qc6 {[%clk
0:00:04.5]} 48... Kg7 {[%clk 0:00:03.2]} 49. Qd5 {[%clk 0:00:04.2]} 49... Bc5
{[%clk 0:00:03.7]} 50. Kh2 {[%clk 0:00:04.1]} 50... Qf4+ {[%clk 0:00:03.2]} 51.
Kh1 {[%clk 0:00:04.5]} 51... Qc1+ {[%clk 0:00:03.9]} 52. Kh2 {[%clk 0:00:04.8]}
52... Qc3 {[%clk 0:00:04.8]} 53. Ne5 {[%clk 0:00:04.5]} 53... Qd4 {[%clk
0:00:01]} 54. Qxf7+ {[%clk 0:00:04.5]} 54... Kh8 {[%clk 0:00:01.9]} 55. Nxg6#
{[%clk 0:00:05.1]} 1-0

[Event "*** Titled Tuesday Blitz"]
[Site "Chess.com"]
[Date "2020.04.14"]
[Round "8"]
[White "Jadro9"]
[Black "GM_RobertoMogranzini"]
[Result "1-0"]
[WhiteElo "2710"]
[BlackElo "2529"]
[TimeControl "180+1"]
[EndTime "11:30:41 PDT"]
[Termination "Jadro9 won on time"]

1. e4 {[%clk 0:03:00.9]} 1... d5 {[%clk 0:02:59.7]} 2. exd5 {[%clk 0:03:00.8]}
2... Qxd5 {[%clk 0:03:00.6]} 3. Nc3 {[%clk 0:03:00.7]} 3... Qd8 {[%clk
0:03:01.2]} 4. d4 {[%clk 0:03:00]} 4... Nf6 {[%clk 0:03:02.1]} 5. Bc4 {[%clk
0:02:57.5]} 5... a6 {[%clk 0:03:02]} 6. Nf3 {[%clk 0:02:48.6]} 6... b5 {[%clk
0:03:01.7]} 7. Bb3 {[%clk 0:02:48.4]} 7... e6 {[%clk 0:03:02.4]} 8. Be3 {[%clk
0:02:43.3]} 8... Bb7 {[%clk 0:03:01.1]} 9. O-O {[%clk 0:02:43.6]} 9... Be7
{[%clk 0:02:59.8]} 10. Ne5 {[%clk 0:02:41.5]} 10... O-O {[%clk 0:02:56.6]} 11.
a4 {[%clk 0:02:41.4]} 11... b4 {[%clk 0:02:56.1]} 12. Ne2 {[%clk 0:02:41.5]}
12... Nbd7 {[%clk 0:02:50.2]} 13. Ng3 {[%clk 0:02:24.1]} 13... Nd5 {[%clk
0:02:39.8]} 14. Bd2 {[%clk 0:02:19.9]} 14... Nxe5 {[%clk 0:02:09.2]} 15. dxe5
{[%clk 0:02:19]} 15... a5 {[%clk 0:02:05.3]} 16. Qg4 {[%clk 0:02:19.1]} 16... g6
{[%clk 0:01:51.3]} 17. Bh6 {[%clk 0:02:11.1]} 17... Re8 {[%clk 0:01:51]} 18.
Rfd1 {[%clk 0:02:11.2]} 18... Qd7 {[%clk 0:01:24.1]} 19. h4 {[%clk 0:02:08.2]}
19... Qc6 {[%clk 0:01:23.9]} 20. f3 {[%clk 0:02:04.7]} 20... Qc5+ {[%clk
0:01:16.9]} 21. Kh1 {[%clk 0:02:04.4]} 21... Ne3 {[%clk 0:01:16.7]} 22. Bxe3
{[%clk 0:02:04.4]} 22... Qxe3 {[%clk 0:01:17.6]} 23. h5 {[%clk 0:02:04.4]} 23...
Qxe5 {[%clk 0:01:15.2]} 24. Re1 {[%clk 0:02:00.9]} 24... Qg5 {[%clk 0:01:13.6]}
25. Qh3 {[%clk 0:01:58.1]} 25... Qh4 {[%clk 0:01:12.7]} 26. Qxh4 {[%clk
0:01:55.1]} 26... Bxh4 {[%clk 0:01:13.6]} 27. Kh2 {[%clk 0:01:55.8]} 27... Rad8
{[%clk 0:01:11.6]} 28. Re5 {[%clk 0:01:53.2]} 28... Rd2 {[%clk 0:01:06.8]} 29.
Kh3 {[%clk 0:01:51.4]} 29... Bf6 {[%clk 0:00:52.3]} 30. Rxa5 {[%clk 0:01:51.3]}
30... Bxb2 {[%clk 0:00:48.5]} 31. Re1 {[%clk 0:01:51.9]} 31... Bc3 {[%clk
0:00:47.2]} 32. Ne4 {[%clk 0:01:35.6]} 32... Bxe4 {[%clk 0:00:40.4]} 33. Rxe4
{[%clk 0:01:35.4]} 33... Red8 {[%clk 0:00:39.9]} 34. Rc5 {[%clk 0:01:32.8]}
34... Rd1 {[%clk 0:00:33.4]} 35. hxg6 {[%clk 0:01:25.9]} 35... hxg6 {[%clk
0:00:33.1]} 36. Rxc7 {[%clk 0:01:24.1]} 36... Rh1+ {[%clk 0:00:31]} 37. Kg3
{[%clk 0:01:24.7]} 37... Be1+ {[%clk 0:00:29.7]} 38. Kf4 {[%clk 0:01:24.9]}
38... Bf2 {[%clk 0:00:25.7]} 39. Rec4 {[%clk 0:01:12.6]} 39... e5+ {[%clk
0:00:20.9]} 40. Kxe5 {[%clk 0:00:56.3]} 40... Bg3+ {[%clk 0:00:20.6]} 41. Kf6
{[%clk 0:00:56.8]} 41... Bxc7 {[%clk 0:00:19.7]} 42. Rxc7 {[%clk 0:00:57.2]}
42... Rd6+ {[%clk 0:00:20.3]} 43. Ke7 {[%clk 0:00:57.5]} 43... Rd2 {[%clk
0:00:17.2]} 44. Bxf7+ {[%clk 0:00:57.4]} 44... Kg7 {[%clk 0:00:17.7]} 45. Bb3
{[%clk 0:00:57.2]} 45... Kh6 {[%clk 0:00:17.2]} 46. g4 {[%clk 0:00:55.9]} 46...
Kg5 {[%clk 0:00:17.2]} 47. a5 {[%clk 0:00:55.2]} 47... Ra1 {[%clk 0:00:16.4]}
48. Rc5+ {[%clk 0:00:50.9]} 48... Kf4 {[%clk 0:00:16.7]} 49. Kf6 {[%clk
0:00:51]} 49... Rd6+ {[%clk 0:00:15.5]} 50. Ke7 {[%clk 0:00:50.4]} 50... Ra6
{[%clk 0:00:16.4]} 51. Bd5 {[%clk 0:00:49]} 51... R1xa5 {[%clk 0:00:15.1]} 52.
Rc4+ {[%clk 0:00:49.5]} 52... Ke5 {[%clk 0:00:15.7]} 53. Be4 {[%clk 0:00:49.5]}
53... Rb6 {[%clk 0:00:14.7]} 54. Rc7 {[%clk 0:00:47.8]} 54... g5 {[%clk
0:00:09.8]} 55. Kf7 {[%clk 0:00:47.3]} 55... Rf6+ {[%clk 0:00:09.4]} 56. Kg7
{[%clk 0:00:47.6]} 56... Rb6 {[%clk 0:00:09.3]} 57. Rf7 {[%clk 0:00:47.5]} 57...
Rab5 {[%clk 0:00:08.9]} 58. Rf5+ {[%clk 0:00:47.7]} 58... Kd4 {[%clk 0:00:09.2]}
59. Rxb5 {[%clk 0:00:46.3]} 59... Rxb5 {[%clk 0:00:09.3]} 60. Kg6 {[%clk
0:00:46.9]} 60... Ke3 {[%clk 0:00:09.4]} 61. Kf6 {[%clk 0:00:46.1]} 61... Kf4
{[%clk 0:00:09.5]} 62. Ke6 {[%clk 0:00:45.2]} 62... Rc5 {[%clk 0:00:10]} 63. Kd6
{[%clk 0:00:45.1]} 63... Rc3 {[%clk 0:00:10.5]} 64. Ke6 {[%clk 0:00:45.5]} 64...
b3 {[%clk 0:00:10.7]} 65. cxb3 {[%clk 0:00:45.3]} 65... Rxb3 {[%clk 0:00:11.6]}
66. Kf6 {[%clk 0:00:45.6]} 66... Rb5 {[%clk 0:00:11.8]} 67. Kg6 {[%clk
0:00:45.2]} 67... Re5 {[%clk 0:00:12.1]} 68. Kh5 {[%clk 0:00:44.9]} 68... Re6
{[%clk 0:00:12.1]} 69. Bf5 {[%clk 0:00:44]} 69... Rf6 {[%clk 0:00:12.4]} 70. Be4
{[%clk 0:00:44.3]} 70... Rf8 {[%clk 0:00:12.4]} 71. Bd5 {[%clk 0:00:44.5]} 71...
Rg8 {[%clk 0:00:11.8]} 72. Bxg8 {[%clk 0:00:43.6]} 1-0

[Event "*** Titled Tuesday Blitz"]
[Site "Chess.com"]
[Date "2020.04.14"]
[Round "8"]
[White "Volodar_Murzin"]
[Black "Eltaj_Safarli"]
[Result "0-1"]
[WhiteElo "2686"]
[BlackElo "3047"]
[TimeControl "180+1"]
[EndTime "11:30:42 PDT"]
[Termination "Eltaj_Safarli won on time"]

1. d4 {[%clk 0:03:00.9]} 1... Nf6 {[%clk 0:02:59.8]} 2. Nf3 {[%clk 0:03:00.6]}
2... g6 {[%clk 0:02:59.3]} 3. Bg5 {[%clk 0:02:59.1]} 3... Bg7 {[%clk 0:02:59.6]}
4. Nbd2 {[%clk 0:02:58.2]} 4... O-O {[%clk 0:02:59.7]} 5. e3 {[%clk 0:02:57.4]}
5... d6 {[%clk 0:03:00]} 6. Bd3 {[%clk 0:02:57]} 6... c5 {[%clk 0:03:00.1]} 7.
O-O {[%clk 0:02:56.8]} 7... Nc6 {[%clk 0:02:59.2]} 8. c3 {[%clk 0:02:56]} 8...
cxd4 {[%clk 0:02:59.3]} 9. exd4 {[%clk 0:02:54.1]} 9... h6 {[%clk 0:02:59.1]}
10. Bxf6 {[%clk 0:02:42]} 10... Bxf6 {[%clk 0:02:58.3]} 11. Re1 {[%clk
0:02:42.2]} 11... Bg7 {[%clk 0:02:38.4]} 12. Qb3 {[%clk 0:02:39.9]} 12... d5
{[%clk 0:02:32.8]} 13. Re2 {[%clk 0:02:36.5]} 13... Rb8 {[%clk 0:02:28.9]} 14.
a4 {[%clk 0:02:34.3]} 14... a6 {[%clk 0:02:25.8]} 15. Rae1 {[%clk 0:02:31.4]}
15... e6 {[%clk 0:02:25.3]} 16. Qa2 {[%clk 0:02:14.5]} 16... Qc7 {[%clk
0:02:15.1]} 17. h4 {[%clk 0:02:07.4]} 17... h5 {[%clk 0:01:58]} 18. g3 {[%clk
0:02:05.7]} 18... Ne7 {[%clk 0:01:51.9]} 19. Ne5 {[%clk 0:02:01.7]} 19... b5
{[%clk 0:01:49.4]} 20. axb5 {[%clk 0:01:59]} 20... axb5 {[%clk 0:01:50.3]} 21.
Ndf3 {[%clk 0:01:54.5]} 21... b4 {[%clk 0:01:47.2]} 22. c4 {[%clk 0:01:31]}
22... dxc4 {[%clk 0:01:39.5]} 23. Qxc4 {[%clk 0:01:30.3]} 23... Qxc4 {[%clk
0:01:34.7]} 24. Bxc4 {[%clk 0:01:30.5]} 24... Rd8 {[%clk 0:01:24.3]} 25. b3
{[%clk 0:01:24.6]} 25... Bxe5 {[%clk 0:01:20.5]} 26. Rxe5 {[%clk 0:01:15.1]}
26... Bb7 {[%clk 0:01:14.1]} 27. Ng5 {[%clk 0:01:13.6]} 27... Nc6 {[%clk
0:00:51.3]} 28. Nxf7 {[%clk 0:00:57]} 28... Kxf7 {[%clk 0:00:52.2]} 29. Rxe6
{[%clk 0:00:56.5]} 29... Kg7 {[%clk 0:00:43.3]} 30. d5 {[%clk 0:00:55.7]} 30...
Nd4 {[%clk 0:00:38.6]} 31. Re7+ {[%clk 0:00:54.9]} 31... Kf8 {[%clk 0:00:35.5]}
32. R1e3 {[%clk 0:00:27.7]} 32... Nf5 {[%clk 0:00:34]} 33. d6 {[%clk 0:00:27.6]}
33... Nxe3 {[%clk 0:00:20]} 34. Rf7+ {[%clk 0:00:26.8]} 34... Kg8 {[%clk
0:00:18.7]} 35. fxe3 {[%clk 0:00:25.8]} 35... Ba6 {[%clk 0:00:11.3]} 36. Bd5
{[%clk 0:00:17]} 36... Kh8 {[%clk 0:00:09.5]} 37. d7 {[%clk 0:00:16.4]} 37...
Bb5 {[%clk 0:00:08.9]} 38. Be6 {[%clk 0:00:15.9]} 38... Rb7 {[%clk 0:00:07.1]}
39. e4 {[%clk 0:00:08.4]} 39... Bxd7 {[%clk 0:00:07.1]} 40. Bd5 {[%clk
0:00:08.7]} 40... Rc7 {[%clk 0:00:06.3]} 41. Rf6 {[%clk 0:00:07.2]} 41... Rc1+
{[%clk 0:00:04.9]} 42. Kf2 {[%clk 0:00:06.7]} 42... Rc2+ {[%clk 0:00:05.8]} 43.
Ke3 {[%clk 0:00:06.6]} 43... Rc3+ {[%clk 0:00:05.2]} 44. Kf4 {[%clk 0:00:06.7]}
44... Kg7 {[%clk 0:00:05]} 45. Rf7+ {[%clk 0:00:06.2]} 45... Kh6 {[%clk
0:00:04.7]} 46. Ke5 {[%clk 0:00:05.7]} 46... Re8+ {[%clk 0:00:03.8]} 47. Kd4
{[%clk 0:00:04]} 47... Bg4 {[%clk 0:00:03.8]} 48. Rb7 {[%clk 0:00:03.7]} 48...
Bd1 {[%clk 0:00:03.1]} 49. Rxb4 {[%clk 0:00:03.4]} 49... Rxg3 {[%clk 0:00:03.4]}
50. Rb6 {[%clk 0:00:03.7]} 50... Rg4 {[%clk 0:00:03.3]} 51. b4 {[%clk
0:00:03.3]} 51... Bc2 {[%clk 0:00:03.7]} 0-1

[Event "*** Titled Tuesday Blitz"]
[Site "Chess.com"]
[Date "2020.04.14"]
[Round "8"]
[White "pooh2012"]
[Black "VinzentSpitzl"]
[Result "0-1"]
[WhiteElo "2554"]
[BlackElo "2383"]
[TimeControl "180+1"]
[EndTime "11:30:43 PDT"]
[Termination "VinzentSpitzl won by resignation"]

1. d4 {[%clk 0:03:00.9]} 1... d5 {[%clk 0:02:59.8]} 2. a3 {[%clk 0:02:59.6]}
2... Nf6 {[%clk 0:02:57]} 3. Bf4 {[%clk 0:02:59.2]} 3... Bf5 {[%clk 0:02:54.9]}
4. e3 {[%clk 0:02:59.2]} 4... e6 {[%clk 0:02:54.5]} 5. Ne2 {[%clk 0:02:52.5]}
5... Bd6 {[%clk 0:02:54.4]} 6. c4 {[%clk 0:02:48.7]} 6... dxc4 {[%clk
0:02:47.5]} 7. Qa4+ {[%clk 0:02:36.6]} 7... Qd7 {[%clk 0:02:46.3]} 8. Qxc4
{[%clk 0:02:35]} 8... O-O {[%clk 0:02:41.4]} 9. Nbc3 {[%clk 0:02:29.1]} 9... a6
{[%clk 0:02:22.1]} 10. a4 {[%clk 0:02:18.4]} 10... Nc6 {[%clk 0:02:21.4]} 11.
Bxd6 {[%clk 0:02:14.6]} 11... Qxd6 {[%clk 0:02:09.9]} 12. Ng3 {[%clk 0:02:12.7]}
12... Bg6 {[%clk 0:02:07.4]} 13. Be2 {[%clk 0:02:06.1]} 13... e5 {[%clk
0:01:56.4]} 14. O-O {[%clk 0:01:39.1]} 14... exd4 {[%clk 0:01:50.2]} 15. Rfd1
{[%clk 0:01:37.9]} 15... Rad8 {[%clk 0:01:26.9]} 16. exd4 {[%clk 0:00:47.4]}
16... Nxd4 {[%clk 0:01:20.8]} 17. Bf1 {[%clk 0:00:47]} 17... c5 {[%clk
0:01:20.8]} 18. Rac1 {[%clk 0:00:24.3]} 18... h6 {[%clk 0:01:13.4]} 19. a5
{[%clk 0:00:22.3]} 19... Rc8 {[%clk 0:00:45.6]} 20. Na4 {[%clk 0:00:19.6]} 20...
Qe6 {[%clk 0:00:23.3]} 21. Nb6 {[%clk 0:00:08.8]} 21... Rc6 {[%clk 0:00:19.7]}
22. b4 {[%clk 0:00:08.1]} 22... Nb5 {[%clk 0:00:07.5]} 23. Qxe6 {[%clk
0:00:06.4]} 23... fxe6 {[%clk 0:00:08.3]} 24. Rxc5 {[%clk 0:00:06.2]} 24... Rxc5
{[%clk 0:00:07.7]} 25. bxc5 {[%clk 0:00:07.1]} 25... Ne4 {[%clk 0:00:05.8]} 26.
Nxe4 {[%clk 0:00:06.7]} 26... Bxe4 {[%clk 0:00:06.7]} 27. Bxb5 {[%clk 0:00:07]}
27... axb5 {[%clk 0:00:06.4]} 28. f3 {[%clk 0:00:07.6]} 28... Bc6 {[%clk
0:00:05.8]} 29. Re1 {[%clk 0:00:08]} 29... Kf7 {[%clk 0:00:06.1]} 30. Kf2 {[%clk
0:00:07.3]} 30... Rd8 {[%clk 0:00:06.3]} 31. Re2 {[%clk 0:00:06.8]} 31... Rd3
{[%clk 0:00:05.9]} 32. Rc2 {[%clk 0:00:07.1]} 32... Ra3 {[%clk 0:00:05.8]} 33.
Nc8 {[%clk 0:00:07.4]} 33... Rxa5 {[%clk 0:00:05.3]} 34. Nd6+ {[%clk 0:00:08.1]}
34... Ke7 {[%clk 0:00:05.5]} 35. Rd2 {[%clk 0:00:08.5]} 35... Bd5 {[%clk
0:00:05.7]} 36. Nc8+ {[%clk 0:00:07]} 36... Kd7 {[%clk 0:00:05.2]} 37. Nd6
{[%clk 0:00:07.5]} 37... Kc6 {[%clk 0:00:05.2]} 38. Ne8 {[%clk 0:00:07.3]} 38...
Ra2 {[%clk 0:00:05.4]} 39. Ke3 {[%clk 0:00:06.4]} 39... Rxd2 {[%clk 0:00:04.8]}
40. Kxd2 {[%clk 0:00:07.3]} 40... g5 {[%clk 0:00:04.4]} 41. Nf6 {[%clk
0:00:04.1]} 41... Kxc5 {[%clk 0:00:04.7]} 42. Ng8 {[%clk 0:00:04.7]} 42... h5
{[%clk 0:00:04.6]} 43. Nf6 {[%clk 0:00:05.1]} 43... g4 {[%clk 0:00:04.5]} 44.
fxg4 {[%clk 0:00:03.9]} 44... hxg4 {[%clk 0:00:04.7]} 45. g3 {[%clk 0:00:04.4]}
45... Bf3 {[%clk 0:00:04.1]} 46. Nd7+ {[%clk 0:00:04.6]} 46... Kd4 {[%clk
0:00:03.4]} 47. Nb6 {[%clk 0:00:04.4]} 47... b4 {[%clk 0:00:03.7]} 48. Na4
{[%clk 0:00:04.2]} 48... b3 {[%clk 0:00:03.6]} 49. Nb2 {[%clk 0:00:04.6]} 49...
b5 {[%clk 0:00:02.9]} 50. Kc1 {[%clk 0:00:04.8]} 50... e5 {[%clk 0:00:03.2]} 51.
Kd2 {[%clk 0:00:04.8]} 51... e4 {[%clk 0:00:03.4]} 52. Ke1 {[%clk 0:00:05.2]}
52... e3 {[%clk 0:00:03.7]} 53. Nd1 {[%clk 0:00:03.1]} 53... Bxd1 {[%clk
0:00:03.2]} 54. Kxd1 {[%clk 0:00:04]} 54... Kc3 {[%clk 0:00:03.2]} 55. Kc1
{[%clk 0:00:04.3]} 55... b2+ {[%clk 0:00:03.6]} 56. Kd1 {[%clk 0:00:04.3]} 56...
e2+ {[%clk 0:00:04.5]} 57. Kxe2 {[%clk 0:00:05.2]} 57... b1=Q {[%clk 0:00:04.4]}
58. Ke3 {[%clk 0:00:06.1]} 58... Qc2 {[%clk 0:00:05.2]} 59. Kf4 {[%clk 0:00:07]}
59... Qxh2 {[%clk 0:00:05.7]} 60. Kxg4 {[%clk 0:00:07.9]} 60... Qg2 {[%clk
0:00:06.3]} 61. Kf4 {[%clk 0:00:08.8]} 61... b4 {[%clk 0:00:06.8]} 62. g4 {[%clk
0:00:09.7]} 62... Qxg4+ {[%clk 0:00:07.3]} 63. Kxg4 {[%clk 0:00:10]} 63... b3
{[%clk 0:00:08.2]} 64. Kf3 {[%clk 0:00:10.9]} 64... b2 {[%clk 0:00:09.1]} 65.
Kf4 {[%clk 0:00:11.8]} 65... b1=Q {[%clk 0:00:09.7]} 0-1

[Event "*** Titled Tuesday Blitz"]
[Site "Chess.com"]
[Date "2020.04.14"]
[Round "8"]
[White "vizumatv4hoda"]
[Black "Fandorine"]
[Result "1/2-1/2"]
[WhiteElo "2772"]
[BlackElo "2916"]
[TimeControl "180+1"]
[EndTime "11:30:44 PDT"]
[Termination "Game drawn by agreement"]

1. e4 {[%clk 0:03:00.9]} 1... c5 {[%clk 0:02:56.8]} 2. c3 {[%clk 0:03:00.7]}
2... Nf6 {[%clk 0:02:52.9]} 3. e5 {[%clk 0:03:00.7]} 3... Nd5 {[%clk 0:02:53.3]}
4. d4 {[%clk 0:03:01.6]} 4... e6 {[%clk 0:02:53.4]} 5. Nf3 {[%clk 0:03:00.1]}
5... cxd4 {[%clk 0:02:53.6]} 6. cxd4 {[%clk 0:03:01]} 6... b6 {[%clk 0:02:53.4]}
7. Nc3 {[%clk 0:02:58.8]} 7... Bb7 {[%clk 0:02:53.5]} 8. Bd3 {[%clk 0:02:56.7]}
8... Na6 {[%clk 0:02:53.1]} 9. O-O {[%clk 0:02:52.6]} 9... Nab4 {[%clk
0:02:27.4]} 10. Bb1 {[%clk 0:02:42.3]} 10... Rc8 {[%clk 0:02:26.9]} 11. Bd2
{[%clk 0:02:33.6]} 11... Nxc3 {[%clk 0:02:20.3]} 12. bxc3 {[%clk 0:02:34.5]}
12... Nd5 {[%clk 0:02:20.4]} 13. Qb3 {[%clk 0:02:21.7]} 13... Ba6 {[%clk
0:02:14.2]} 14. Rc1 {[%clk 0:02:21.7]} 14... Bc4 {[%clk 0:02:13.5]} 15. Qd1
{[%clk 0:02:19.5]} 15... Be7 {[%clk 0:02:12.5]} 16. Be4 {[%clk 0:02:15.5]} 16...
O-O {[%clk 0:02:00.9]} 17. h4 {[%clk 0:02:15.8]} 17... f5 {[%clk 0:01:59.2]} 18.
Bxd5 {[%clk 0:02:06.9]} 18... Bxd5 {[%clk 0:01:58.3]} 19. Ng5 {[%clk 0:02:05.4]}
19... f4 {[%clk 0:01:36.4]} 20. Qh5 {[%clk 0:02:01.2]} 20... h6 {[%clk
0:01:36.1]} 21. Nh3 {[%clk 0:01:44]} 21... Bxh4 {[%clk 0:00:49]} 22. Nxf4 {[%clk
0:01:42.8]} 22... Bg5 {[%clk 0:00:48]} 23. Nxd5 {[%clk 0:01:35.7]} 23... Bxd2
{[%clk 0:00:48.4]} 24. Rc2 {[%clk 0:01:35.7]} 24... exd5 {[%clk 0:00:33.3]} 25.
Rxd2 {[%clk 0:01:36.2]} 25... Rxc3 {[%clk 0:00:33.8]} 26. Re1 {[%clk 0:01:33.8]}
26... Qe7 {[%clk 0:00:33.4]} 27. e6 {[%clk 0:01:21.9]} 27... dxe6 {[%clk
0:00:30.4]} 28. Qxd5 {[%clk 0:01:22.6]} 28... Rc1 {[%clk 0:00:14.8]} 29. Qe5
{[%clk 0:01:09.2]} 29... Rxe1+ {[%clk 0:00:14.5]} 30. Qxe1 {[%clk 0:01:10.1]}
30... Qd6 {[%clk 0:00:14.7]} 31. Qe5 {[%clk 0:01:02.5]} 31... Rd8 {[%clk
0:00:10.9]} 32. Qe4 {[%clk 0:00:58.6]} 32... Qd5 {[%clk 0:00:11.1]} 33. Qg4
{[%clk 0:00:55.2]} 33... e5 {[%clk 0:00:09.1]} 34. Re2 {[%clk 0:00:55.8]} 34...
Qxd4 {[%clk 0:00:06.7]} 35. Qe6+ {[%clk 0:00:52.7]} 35... Kh8 {[%clk 0:00:06.9]}
36. Rxe5 {[%clk 0:00:53.6]} 36... Rf8 {[%clk 0:00:04.5]} 37. Rf5 {[%clk
0:00:47.5]} 37... Qd1+ {[%clk 0:00:04.6]} 38. Kh2 {[%clk 0:00:46.5]} 38... Rd8
{[%clk 0:00:03.5]} 39. Qe7 {[%clk 0:00:35.8]} 39... Qd6+ {[%clk 0:00:03.2]} 40.
Re5 {[%clk 0:00:32.7]} 40... Qxe7 {[%clk 0:00:03.4]} 41. Rxe7 {[%clk 0:00:33.6]}
41... a5 {[%clk 0:00:04.1]} 42. Rb7 {[%clk 0:00:32.8]} 42... Rd6 {[%clk
0:00:04.5]} 43. a4 {[%clk 0:00:32.6]} 43... Rd4 {[%clk 0:00:03.6]} 44. Rxb6
{[%clk 0:00:30]} 44... Rxa4 {[%clk 0:00:04]} 45. Ra6 {[%clk 0:00:30.9]} 45...
Kh7 {[%clk 0:00:04.3]} 46. Kh3 {[%clk 0:00:28.8]} 46... h5 {[%clk 0:00:03.5]}
47. g3 {[%clk 0:00:28.3]} 47... g6 {[%clk 0:00:04]} 48. f4 {[%clk 0:00:28.5]}
48... Ra1 {[%clk 0:00:03.6]} 49. Kh4 {[%clk 0:00:28.8]} 49... Ra3 {[%clk
0:00:02.1]} 50. Ra7+ {[%clk 0:00:27.2]} 50... Kh6 {[%clk 0:00:02.6]} 51. Ra6
{[%clk 0:00:28.1]} 51... Rb3 {[%clk 0:00:02.1]} 52. f5 {[%clk 0:00:27.8]} 52...
Rb4+ {[%clk 0:00:01.8]} 53. Kh3 {[%clk 0:00:28.4]} 53... Kg5 {[%clk 0:00:02.3]}
54. fxg6 {[%clk 0:00:28.4]} 54... Rb7 {[%clk 0:00:02.9]} 55. g7 {[%clk
0:00:21.3]} 55... Rxg7 {[%clk 0:00:03]} 56. Rxa5+ {[%clk 0:00:22.2]} 56... Kh6
{[%clk 0:00:03.6]} 57. Kh4 {[%clk 0:00:23]} 57... Rg4+ {[%clk 0:00:03.8]} 58.
Kh3 {[%clk 0:00:23.5]} 58... Rg5 {[%clk 0:00:04.4]} 59. Ra6+ {[%clk 0:00:23.1]}
59... Rg6 {[%clk 0:00:04.8]} 60. Ra8 {[%clk 0:00:22.3]} 60... Rg4 {[%clk
0:00:05.1]} 1/2-1/2